bitfinex-derivatives/quotes_ETHF0:USTF0_20250123
["timestamp","ask_amount","ask_price","bid_price","bid_amount"]
[1737623166032,0.62145,3220.0,3219.9,40.80466157]
[1737623166230,0.62145,3220.0,3219.9,0.00466157]
[1737623166428,1.12995,3220.0,3219.9,0.00466157]
[1737623166634,1.12995,3220.0,3219.9,0.00275711]
[1737623168537,1.12995,3220.0,3219.9,0.62422711]
[1737623168738,1.12995,3220.0,3219.9,0.00275711]
[1737623177842,2.28913664,3220.0,3219.9,0.00275711]
[1737623179342,1.12995,3220.0,3219.9,0.00275711]
[1737623179942,3.2078,3220.1,3220.0,0.62145]
[1737623180150,3.2078,3220.1,3220.0,1.10135]
[1737623180944,3.82915,3220.6,3220.5,0.62136]
[1737623181144,0.62134,3220.6,3220.5,0.62135]
[1737623181944,0.62133,3220.7,3220.6,0.62133]
[1737623182335,0.62134,3220.6,3220.5,0.62135]
[1737623182536,0.5078,3220.9,3220.3,2.44818718]
[1737623182835,0.62134,3220.7,3220.5,0.62134]
[1737623183035,0.62134,3220.7,3220.6,0.4986]
[1737623184046,0.62134,3220.7,3220.6,1.11994]
[1737623184245,0.62134,3220.7,3220.6,0.4986]
[1737623184539,0.5078,3220.9,3220.2,0.5127]
[1737623184741,0.5196,3220.6,3220.2,0.4897]
[1737623184947,0.62134,3220.6,3220.5,0.62136]
[1737623185644,0.62136,3220.5,3220.4,0.62136]
[1737623186036,0.62134,3220.6,3220.5,0.62135]
[1737623186647,0.62132,3220.7,3220.6,0.62132]
[1737623187038,0.5078,3220.9,3220.3,2.94228718]
[1737623187244,3.2078,3220.5,3220.2,0.4897]
[1737623187445,0.4839,3220.4,3220.2,0.4897]
[1737623187950,0.4839,3220.4,3220.1,3.2078]
[1737623188244,0.62141,3220.2,3220.1,3.2078]
[1737623193255,0.62141,3220.2,3220.1,3.82923]
[1737623194446,0.62141,3220.2,3220.1,3.2078]
[1737623194644,0.5187,3220.3,3219.9,40.80275711]
[1737623194850,3.82925,3220.0,3219.9,0.00275711]
[1737623195258,9.66522262,3220.0,3219.5,0.4819]
[1737623195447,0.62157,3219.4,3219.3,0.24965]
[1737623195947,0.62157,3219.4,3219.3,41.04965]
[1737623196344,0.62157,3219.4,3219.3,0.24965]
[1737623198254,5.269853,3219.4,3219.3,0.24965]
[1737623198453,5.269853,3219.4,3219.3,0.14036838]
[1737623199248,0.62163,3219.1,3219.0,0.00466157]
[1737623208563,0.62163,3219.1,3219.0,0.52356157]
[1737623209566,0.62163,3219.1,3219.0,0.00466157]
[1737623210163,4.69860445,3219.1,3219.0,0.00466157]
[1737623210664,0.62163,3219.1,3219.0,0.62630157]
[1737623210853,0.62163,3219.1,3219.0,0.00466157]
[1737623211458,0.62163,3219.1,3219.0,40.80466157]
[1737623212869,0.62163,3219.1,3219.0,0.00466157]
[1737623217366,4.70914069,3219.1,3219.0,0.00466157]
[1737623217868,0.62163,3219.1,3219.0,0.00466157]
[1737623219173,4.64155364,3219.1,3219.0,0.00466157]
[1737623219474,5.12955364,3219.1,3219.0,0.00466157]
[1737623221271,0.62163,3219.1,3219.0,0.00466157]
[1737623222172,1.14243,3219.1,3219.0,0.00466157]
[1737623223674,5.24159642,3219.1,3219.0,0.00466157]
[1737623224269,4.72079642,3219.1,3219.0,0.00466157]
[1737623225274,4.72079642,3219.1,3219.0,0.00268798]
[1737623228679,0.62163,3219.1,3219.0,0.00268798]
[1737623228877,0.62163,3219.1,3219.0,0.52068798]
[1737623229376,0.62163,3219.1,3219.0,1.14233798]
[1737623230582,0.62163,3219.1,3219.0,0.52068798]
[1737623232482,0.62163,3219.1,3219.0,1.14233798]
[1737623232677,0.62163,3219.1,3219.0,0.52068798]
[1737623236391,0.62163,3219.1,3219.0,1.14233798]
[1737623236689,0.62163,3219.1,3219.0,0.52068798]
[1737623241287,0.62165,3219.0,3218.9,0.89078098]
[1737623246093,3.2078,3219.2,3218.7,1.64311726]
[1737623246290,0.62168,3218.8,3218.7,0.4836]
[1737623246796,1.14108,3218.8,3218.7,0.4836]
[1737623250297,0.6217,3218.7,3218.6,0.00466157]
[1737623250600,0.6217,3218.7,3218.6,0.49076157]
[1737623250794,0.6217,3218.7,3218.6,41.91248157]
[1737623250993,3.2078,3218.8,3218.7,0.6217]
[1737623251299,3.2078,3218.8,3218.7,2.30751726]
[1737623251497,0.62165,3219.0,3218.7,1.68581726]
[1737623251702,0.62165,3219.0,3218.9,1.15951726]
[1737623252296,0.62165,3219.0,3218.9,41.95951726]
[1737623253895,1.13473,3219.1,3219.0,0.62165]
[1737623254298,0.5131,3219.1,3218.9,42.58117726]
[1737623254602,0.62165,3219.0,3218.9,42.58117726]
[1737623255499,1.66587883,3219.4,3219.3,0.62159]
[1737623255500,0.00466157,3219.4,3219.3,0.62159]
[1737623255697,3.2078,3219.6,3219.5,0.62155]
[1737623255894,3.2078,3219.6,3219.5,1.78106726]
[1737623256300,3.2078,3219.6,3219.5,42.58106726]
[1737623256906,3.82933,3219.6,3219.5,42.58106726]
[1737623257401,3.2078,3219.6,3219.5,42.58106726]
[1737623257901,3.2078,3219.6,3219.5,41.42155]
[1737623258597,0.00466157,3219.9,3219.5,41.42155]
[1737623258797,0.00466157,3219.9,3219.8,0.62149]
[1737623259398,0.00466157,3219.9,3219.8,41.42149]
[1737623261009,0.62613157,3219.9,3219.8,41.42149]
[1737623261397,0.00466157,3219.9,3219.8,41.42149]
[1737623263803,0.00466157,3219.9,3219.8,41.91369]
[1737623268610,0.62129,3220.9,3220.8,0.62129]
[1737623270604,3.82907,3221.0,3220.8,0.62129]
[1737623271006,0.62131,3220.8,3220.7,0.62131]
[1737623271310,0.6213,3220.8,3220.7,41.42131]
[1737623272109,0.62128,3220.9,3220.8,0.62129]
[1737623272313,3.82907,3221.0,3220.9,0.62128]
[1737623273015,3.2078,3221.0,3220.9,0.62128]
[1737623274915,0.00466157,3221.2,3221.1,0.62124]
[1737623275114,0.00466157,3221.2,3221.1,3.0696262]
[1737623280725,0.00466157,3221.2,3221.1,3.5813262]
[1737623280921,3.2078,3221.8,3221.7,0.62112]
[1737623281526,3.2078,3221.8,3221.7,41.42112]
[1737623283629,0.48672872,3222.1,3221.7,40.8]
[1737623283926,0.00462872,3222.1,3222.0,0.62107]
[1737623284125,3.2078,3222.7,3222.0,1.13357]
[1737623284126,3.7103,3222.7,3222.0,1.13357]
[1737623284322,3.7103,3222.7,3222.6,0.62095]
[1737623284729,4.33123,3222.7,3222.6,0.62095]
[1737623285029,4.2299,3222.7,3222.6,0.62095]
[1737623285619,3.7274,3222.7,3222.6,0.62095]
[1737623286123,3.7274,3222.7,3222.6,3.0693362]
[1737623286632,0.5161,3223.2,3222.6,3.0693362]
[1737623286633,0.5161,3223.2,3223.1,0.62086]
[1737623286927,0.5161,3223.2,3223.1,41.42086]
[1737623287124,3.2078,3223.4,3223.1,40.8]
[1737623287423,3.2078,3223.4,3223.3,3.0692062]
[1737623289823,3.8286,3223.4,3223.3,2.4483862]
[1737623290329,3.8286,3223.4,3223.1,41.42084]
[1737623290330,3.2078,3223.4,3223.1,41.42084]
[1737623290529,3.2078,3223.4,3222.7,4.2056]
[1737623290530,3.2078,3223.4,3222.7,6.6539862]
[1737623290724,3.2078,3223.4,3222.7,2.9393862]
[1737623290725,0.62089,3223.0,3222.7,2.9393862]
[1737623290917,0.5087,3222.9,3222.8,0.62091]
[1737623294923,0.5087,3222.9,3222.8,41.42091]
[1737623295422,1.12959,3222.9,3222.8,40.8]
[1737623296827,0.62097,3222.5,3222.4,3.0693662]
[1737623297034,3.7165,3222.9,3222.3,0.48726157]
[1737623297228,3.7165,3222.9,3222.4,40.8]
[1737623297529,0.62097,3222.5,3222.4,40.8]
[1737623298625,3.82877,3222.5,3222.4,40.8]
[1737623300429,3.82877,3222.5,3222.4,41.42099]
[1737623300734,3.82877,3222.5,3222.4,40.8]
[1737623306739,0.62099,3222.4,3222.3,0.00466157]
[1737623306940,1.11069,3222.4,3222.3,0.00466157]
[1737623307237,0.62112,3221.8,3221.7,40.8]
[1737623307937,1.55256,3222.3,3221.5,2.9309862]
[1737623308137,0.62114,3221.6,3221.5,3.5521462]
[1737623308331,0.4897,3221.7,3221.2,2.4483862]
[1737623308528,0.62118,3221.5,3221.4,40.8]
[1737623309640,0.6212,3221.3,3221.2,0.00465419]
[1737623310135,0.6212,3221.3,3221.2,40.80465419]
[1737623310538,3.829,3221.3,3221.2,40.80465419]
[1737623310739,8.42370921,3221.3,3221.2,0.00465419]
[1737623311346,8.42370921,3221.3,3221.2,0.00253447]
[1737623315447,0.6213,3220.8,3220.7,0.85375009]
[1737623315743,0.62126,3221.0,3220.5,0.62135]
[1737623315950,0.6213,3220.8,3220.7,40.8]
[1737623316644,3.2078,3220.9,3220.4,0.00465419]
[1737623316851,3.82916,3220.5,3220.4,0.00465419]
[1737623317239,3.82916,3220.5,3220.4,40.80465419]
[1737623317843,3.2078,3220.5,3220.4,40.80465419]
[1737623318153,3.2078,3220.5,3220.4,41.42603419]
[1737623319445,0.62132,3220.8,3220.5,0.62136]
[1737623319644,0.5192,3221.0,3220.6,0.62133]
[1737623319844,0.62134,3220.6,3220.5,0.5184]
[1737623320841,0.5192,3221.0,3220.5,0.5184]
[1737623321148,0.62134,3220.6,3220.5,0.5184]
[1737623321549,0.5192,3221.0,3220.5,0.5184]
[1737623321750,0.62133,3220.7,3220.5,1.13974]
[1737623321951,0.62133,3220.7,3220.6,0.62134]
[1737623322557,0.5192,3221.0,3220.5,0.5184]
[1737623322750,0.62132,3220.7,3220.6,0.62134]
[1737623323056,0.62131,3220.8,3220.6,0.62134]
[1737623324449,0.5192,3221.0,3220.5,1.045]
[1737623324653,0.62134,3220.6,3220.5,1.045]
[1737623324849,0.62134,3220.6,3220.5,1.13976]
[1737623325058,0.62132,3220.8,3220.6,0.62133]
[1737623325256,0.62134,3220.6,3220.5,1.13975]
[1737623326056,0.62134,3220.6,3220.5,0.5184]
[1737623326453,0.62136,3220.5,3220.4,0.00465419]
[1737623326848,0.62136,3220.5,3220.4,40.80465419]
[1737623331050,0.62136,3220.5,3220.4,0.00465419]
[1737623331252,4.69773738,3220.5,3220.4,0.00465419]
[1737623331455,4.69773738,3220.5,3219.4,5.6561862]
[1737623331456,0.62151,3219.7,3219.4,5.6561862]
[1737623331656,0.62151,3219.7,3219.6,0.62152]
[1737623333661,0.6215,3219.8,3219.7,0.62149]
[1737623334565,0.62611419,3220.0,3219.9,0.62147]
[1737623335063,0.00465419,3220.0,3219.9,41.42147]
[1737623335255,0.00465419,3220.0,3219.9,41.91807]
[1737623339161,3.2078,3221.0,3220.9,0.62128]
[1737623339362,3.2078,3221.0,3220.7,0.4971]
[1737623339363,0.6213,3220.8,3220.7,0.4971]
[1737623339594,0.6213,3220.8,3220.4,2.4483862]
[1737623339761,3.2078,3221.0,3220.4,2.9454862]
[1737623339762,0.4904,3220.9,3220.4,2.9454862]
[1737623340064,0.4904,3220.9,3220.4,0.4971]
[1737623340260,0.62131,3220.8,3220.6,0.62132]
[1737623341166,1.0068,3220.9,3220.6,0.62132]
[1737623341370,0.62132,3220.7,3220.6,0.62132]
[1737623342066,3.21245419,3221.0,3220.4,2.9454862]
[1737623342271,3.21245419,3221.0,3220.9,0.62128]
[1737623342466,3.83371419,3221.0,3220.9,0.62128]
[1737623342870,3.21245419,3221.0,3220.9,0.62128]
[1737623343167,0.00465419,3221.0,3220.9,0.62128]
[1737623343561,0.00465419,3221.0,3220.9,41.42128]
[1737623344276,3.2078,3221.4,3221.3,0.6212]
[1737623344772,3.2078,3221.4,3221.3,1.1137]
[1737623345168,3.2078,3221.4,3221.3,41.2925]
[1737623345376,3.82898,3221.4,3221.3,41.2925]
[1737623345964,3.82898,3221.4,3221.3,40.8]
[1737623346268,0.62124,3221.1,3221.0,0.00465419]
[1737623346774,4.72588676,3221.1,3221.0,0.00465419]
[1737623346976,4.72588676,3221.1,3221.0,0.00253464]
[1737623347371,6.20978676,3221.1,3221.0,0.00253464]
[1737623355779,5.68528676,3221.1,3221.0,0.00253464]
[1737623359579,10.06404676,3221.1,3220.2,0.5227]
[1737623359780,0.6214,3220.3,3220.2,0.5227]
[1737623361984,1.0261,3220.4,3220.2,0.5227]
[1737623361985,0.5188,3220.4,3220.2,0.5227]
[1737623362186,3.82917,3220.5,3220.4,0.62138]
[1737623362374,3.2078,3220.5,3220.3,0.62138]
[1737623362689,3.2078,3220.5,3220.4,0.62138]
[1737623362882,3.82916,3220.5,3220.4,0.62138]
[1737623363387,3.2078,3220.5,3220.4,0.62138]
[1737623363581,0.4995,3220.7,3220.3,2.4483862]
[1737623364009,3.2078,3220.9,3220.3,2.4483862]
[1737623364288,3.2078,3220.9,3220.8,0.6213]
[1737623364485,3.82908,3220.9,3220.8,0.6213]
[1737623364984,3.2078,3220.9,3220.8,0.6213]
[1737623365787,0.62123,3221.2,3221.0,0.62125]
[1737623366588,0.62124,3221.1,3221.0,0.62125]
[1737623367183,3.2078,3221.3,3220.8,0.512]
[1737623367393,0.62126,3221.0,3220.9,0.62128]
[1737623367593,0.6213,3220.8,3220.7,1.10741]
[1737623367883,0.62129,3220.9,3220.7,0.4861]
[1737623368088,3.2078,3221.3,3220.7,0.4861]
[1737623368390,3.2078,3221.3,3221.0,0.62125]
[1737623368579,0.62124,3221.1,3221.0,0.62125]
[1737623369483,3.2078,3221.3,3220.7,0.4861]
[1737623369687,0.62127,3221.0,3220.7,0.4861]
[1737623369893,0.62125,3221.1,3220.7,0.4861]
[1737623370184,3.2078,3221.3,3220.9,0.62126]
[1737623370491,0.62126,3221.0,3220.9,0.62126]
[1737623370983,0.6213,3220.8,3220.7,0.4861]
[1737623371188,4.76101,3220.9,3220.1,40.8]
[1737623371379,4.76101,3220.9,3220.3,0.4833]
[1737623371380,0.62138,3220.4,3220.3,0.4833]
[1737623371779,0.62138,3220.4,3219.7,1.55374]
[1737623371780,0.62145,3220.0,3219.6,3.2078]
[1737623371978,0.62145,3220.0,3219.8,0.62148]
[1737623372174,0.62145,3220.0,3219.7,0.5175]
[1737623372390,0.62145,3220.0,3219.9,40.80465419]
[1737623372680,0.62145,3220.0,3219.9,0.00465419]
[1737623373787,0.62149,3219.8,3219.7,40.8]
[1737623373978,0.62149,3219.8,3219.0,0.62163]
[1737623374289,0.62159,3219.3,3218.7,0.4838]
[1737623374598,3.2078,3219.5,3219.2,40.8]
[1737623374789,0.62159,3219.3,3219.2,40.8]
[1737623375192,0.62159,3219.3,3219.0,0.62628419]
[1737623375384,3.2078,3219.5,3219.0,0.62628419]
[1737623375385,0.62161,3219.2,3219.0,0.62628419]
[1737623375590,0.62161,3219.2,3219.0,41.42628419]
[1737623376090,0.62163,3219.1,3219.0,40.80465419]
[1737623376285,3.82943,3219.1,3219.0,40.80465419]
[1737623376590,7.82412029,3219.1,3219.0,40.80465419]
[1737623376788,7.82412029,3219.1,3219.0,0.00465419]
[1737623377989,8.85312029,3219.1,3219.0,0.00465419]
[1737623378292,9.37362029,3219.1,3219.0,0.00465419]
[1737623378587,13.75199029,3219.1,3218.4,0.4768]
[1737623378795,3.2078,3218.7,3218.4,0.4768]
[1737623379180,0.62173,3218.6,3218.4,0.4768]
[1737623379692,0.62174,3218.5,3218.4,0.4768]
[1737623380189,0.62173,3218.6,3218.4,0.4768]
[1737623380595,3.2078,3218.7,3218.4,0.4768]
[1737623380596,0.62174,3218.5,3218.4,0.4768]
[1737623382290,3.2078,3218.7,3218.4,0.4768]
[1737623382489,3.2078,3218.7,3218.4,1.09855]
[1737623382795,0.62172,3218.6,3218.5,40.8]
[1737623383990,3.82952,3218.7,3218.5,40.8]
[1737623384392,0.62172,3218.6,3218.5,40.8]
[1737623384997,0.62172,3218.6,3218.2,0.00465419]
[1737623384998,0.62178,3218.3,3218.2,0.00465419]
[1737623385499,10.40181307,3218.3,3218.2,0.00465419]
[1737623385792,0.6219,3217.7,3217.4,0.62195]
[1737623386793,0.62195,3217.5,3217.3,0.4914]
[1737623387295,3.2124615,3217.9,3217.2,40.8046615]
[1737623387296,0.6219,3217.7,3217.2,41.4266515]
[1737623387495,0.62196,3217.4,3217.2,41.4266515]
[1737623387686,0.62196,3217.4,3217.2,40.8046615]
[1737623387893,0.4775,3217.8,3217.2,40.8046615]
[1737623387894,0.62197,3217.3,3217.2,0.0046615]
[1737623388095,4.54170367,3217.3,3216.5,3.2078]
[1737623388304,3.2078,3216.6,3216.2,0.5195]
[1737623388601,0.62214,3216.5,3216.3,40.8]
[1737623388999,3.82992,3216.6,3216.3,40.8]
[1737623389399,3.2078,3216.6,3216.4,0.62215]
[1737623389906,3.82991,3216.6,3216.3,41.42216]
[1737623390104,3.2078,3216.6,3216.4,0.62214]
[1737623390404,3.2078,3216.6,3216.3,40.8]
[1737623390596,0.62215,3216.4,3216.3,40.8]
[1737623390796,0.4928,3216.5,3216.3,40.8]
[1737623391002,1.11494,3216.5,3216.3,40.8]
[1737623391199,1.11493,3216.5,3216.3,41.42216]
[1737623391397,0.62215,3216.4,3216.3,40.8]
[1737623391595,4.62010631,3216.4,3216.3,40.8]
[1737623392301,4.62010631,3216.4,3216.1,0.00313707]
[1737623392302,3.99795631,3216.4,3216.1,0.00313707]
[1737623392499,3.99795631,3216.4,3216.1,0.62532707]
[1737623392707,0.62217,3216.3,3216.2,40.8]
[1737623394100,0.4928,3216.5,3216.2,40.8]
[1737623394309,3.2078,3216.6,3216.3,0.62217]
[1737623394606,3.82992,3216.6,3216.2,41.42217]
[1737623394903,3.82992,3216.6,3216.3,0.62217]
[1737623395492,3.2078,3216.6,3216.2,40.8]
[1737623395898,3.2078,3216.6,3216.4,0.62214]
[1737623396798,3.2078,3216.6,3216.5,0.62213]
[1737623397309,3.2078,3216.6,3216.3,0.517]
[1737623397508,3.2078,3216.6,3216.4,0.62213]
[1737623397804,3.82992,3216.6,3216.3,1.13916]
[1737623398005,0.62214,3216.5,3216.3,0.517]
[1737623398201,3.82991,3216.6,3216.3,1.13916]
[1737623399300,3.2078,3216.6,3216.3,1.13916]
[1737623399700,3.82991,3216.6,3216.3,1.13916]
[1737623400802,3.2078,3216.6,3216.3,0.517]
[1737623400997,0.62215,3216.4,3216.3,0.517]
[1737623401501,0.62214,3216.5,3216.3,0.517]
[1737623401698,3.2078,3216.6,3216.3,0.517]
[1737623401899,3.2078,3216.6,3216.4,0.62214]
[1737623402099,3.82991,3216.6,3216.4,0.62214]
[1737623402605,3.2078,3216.6,3216.4,0.62214]
[1737623402906,3.2078,3216.6,3216.4,0.62215]
[1737623403307,3.2078,3216.6,3216.3,1.0416]
[1737623403698,3.2078,3216.6,3216.5,0.62213]
[1737623404102,3.2078,3216.6,3216.3,1.66376]
[1737623404311,0.62214,3216.5,3216.3,1.66376]
[1737623404496,3.2078,3216.6,3216.3,1.0416]
[1737623404703,0.62213,3216.5,3216.3,1.0416]
[1737623404903,0.62213,3216.5,3216.3,1.66376]
[1737623405402,3.2078,3216.6,3216.5,0.62213]
[1737623411914,3.12975,3217.7,3216.5,0.62213]
[1737623411915,3.2078,3217.2,3217.1,0.62201]
[1737623412612,0.4824,3217.7,3217.1,2.4483862]
[1737623412808,3.2124615,3217.9,3217.8,0.62188]
[1737623413209,3.2124615,3217.9,3217.8,41.42188]
[1737623421220,3.2124615,3217.9,3217.8,0.62188]
[1737623421627,3.2124615,3217.9,3217.7,2.4483862]
[1737623421924,0.62192,3217.6,3217.4,0.62194]
[1737623422133,7.27451477,3217.9,3217.2,0.4778]
[1737623422321,3.2124615,3217.9,3217.2,0.4778]
[1737623422523,0.62195,3217.5,3217.3,0.62197]
[1737623422725,4.05764557,3217.8,3217.2,0.4778]
[1737623422918,0.62192,3217.6,3217.5,0.62192]
[1737623423225,0.62192,3217.6,3217.4,0.62195]
[1737623423427,0.62194,3217.5,3217.4,0.62195]
[1737623424621,0.62194,3217.5,3217.1,5.6561862]
[1737623424622,1.12091,3217.7,3217.5,0.62193]
[1737623424822,0.499,3217.7,3217.5,0.62193]
[1737623425021,1.12091,3217.7,3217.5,0.62193]
[1737623426017,1.12091,3217.7,3217.5,0.62194]
[1737623427434,0.499,3217.7,3217.4,2.4483862]
[1737623427729,1.12091,3217.7,3217.5,0.62194]
[1737623428730,3.2124615,3217.9,3217.4,2.4483862]
[1737623429028,3.2124615,3217.9,3217.8,0.62188]
[1737623436034,3.8343315,3217.9,3217.8,0.62188]
[1737623436422,3.8343315,3217.9,3217.7,0.62189]
[1737623436423,3.2124615,3217.9,3217.7,0.62189]
[1737623436628,3.2124615,3217.9,3217.6,40.8]
[1737623436629,0.6219,3217.7,3217.6,40.8]
[1737623437028,1.0049,3217.8,3217.6,40.8]
[1737623437029,1.62679,3217.8,3217.6,40.8]
[1737623437229,1.62679,3217.8,3217.7,0.6219]
[1737623437429,1.0049,3217.8,3217.7,0.6219]
[1737623437629,3.2124615,3217.9,3217.8,0.62188]
[1737623440132,0.0046615,3217.9,3217.8,0.62188]
[1737623443043,0.0046615,3217.9,3217.8,0.34523254]
[1737623446941,0.0046615,3217.9,3217.8,5.34523254]
[1737623447134,3.82951,3218.7,3218.4,0.62176]
[1737623447337,3.2078,3218.7,3218.6,0.62172]
[1737623447544,0.5239,3218.9,3218.6,2.4483862]
[1737623447742,0.5239,3218.9,3218.8,0.62168]
[1737623448045,0.4875,3219.1,3219.0,0.62165]
[1737623448549,0.0046615,3219.2,3218.9,0.4955]
[1737623448747,0.0046615,3219.2,3219.1,0.62163]
[1737623449545,0.6262715,3219.2,3219.1,0.62163]
[1737623449744,0.0046615,3219.2,3219.1,0.62163]
[1737623463356,0.0046615,3219.2,3218.9,0.4955]
[1737623463654,10.30777622,3219.2,3218.5,0.0046615]
[1737623463957,0.62172,3218.6,3218.5,0.0046615]
[1737623464250,0.62171,3218.7,3218.6,0.62171]
[1737623464456,0.62172,3218.6,3218.5,0.6263915]
[1737623465453,0.62172,3218.6,3218.5,0.0046615]
[1737623465655,1.14352,3218.6,3218.5,0.0046615]
[1737623470150,3.5919062,3218.6,3218.5,0.0046615]
[1737623470347,7.04693699,3218.6,3217.5,3.2078]
[1737623470549,1.62442,3218.7,3218.5,3.0701262]
[1737623470861,1.0027,3218.7,3218.6,41.42172]
[1737623471051,3.2078,3219.0,3218.9,0.62167]
[1737623471251,3.2078,3219.0,3218.6,41.2802]
[1737623471557,0.62168,3218.9,3218.7,0.62169]
[1737623471761,0.62169,3218.8,3218.6,40.80313707]
[1737623471951,0.62169,3218.8,3218.6,41.42484707]
[1737623472560,0.62167,3218.9,3218.6,40.80313707]
[1737623472956,3.2078,3219.0,3218.6,40.80313707]
[1737623473149,0.62167,3218.9,3218.6,41.42484707]
[1737623474059,0.62167,3218.9,3218.7,0.6217]
[1737623474363,0.62169,3218.8,3218.6,41.42484707]
[1737623474556,0.62167,3218.9,3218.7,0.6217]
[1737623475761,0.62167,3218.9,3218.6,41.42484707]
[1737623475962,0.62167,3218.9,3218.7,0.6217]
[1737623476760,3.82945,3219.0,3218.8,0.62168]
[1737623476956,3.2078,3219.0,3218.9,0.62167]
[1737623478467,3.2078,3219.0,3218.9,0.62167]
[1737623479162,3.82945,3219.0,3218.6,40.80313707]
[1737623479364,0.6217,3218.7,3218.6,0.00313707]
[1737623479757,6.95822297,3218.9,3217.9,2.9345862]
[1737623479959,6.95822297,3218.9,3217.9,41.2862]
[1737623479960,3.2078,3218.4,3217.9,41.2862]
[1737623480159,0.62183,3218.1,3217.9,1.10805]
[1737623480363,0.62181,3218.2,3218.0,0.62183]
[1737623480865,0.5146,3218.3,3217.9,43.7345862]
[1737623481061,3.2078,3218.4,3217.9,43.7345862]
[1737623481666,0.62179,3218.3,3218.1,0.62181]
[1737623481960,0.6218,3218.2,3217.9,43.7345862]
[1737623482263,0.62181,3218.2,3217.9,43.7345862]
[1737623482459,0.62184,3218.1,3217.9,41.90805]
[1737623482662,3.2078,3218.4,3217.9,41.90805]
[1737623482864,0.4929,3218.3,3217.9,41.2862]
[1737623483068,0.6218,3218.2,3218.0,0.62182]
[1737623483359,0.4929,3218.3,3218.0,0.62182]
[1737623483557,0.62182,3218.1,3217.9,41.2862]
[1737623483759,0.62182,3218.1,3217.9,41.90805]
[1737623484267,3.82964,3218.0,3217.9,0.4862]
[1737623484564,3.82964,3218.0,3217.4,0.4891]
[1737623484565,3.6995,3218.0,3217.4,0.4891]
[1737623484755,0.62187,3217.9,3217.7,0.62189]
[1737623484956,4.32135,3218.0,3217.8,0.62186]
[1737623485555,0.62187,3217.9,3217.7,0.62188]
[1737623487062,3.6995,3218.0,3217.6,2.4483862]
[1737623487263,3.2078,3218.0,3217.9,0.62186]
[1737623487861,3.82957,3218.4,3217.9,2.4483862]
[1737623488071,3.2078,3218.4,3218.3,0.62178]
[1737623488662,3.2078,3218.4,3218.3,41.42178]
[1737623488860,3.2078,3218.9,3218.3,45.8]
[1737623489066,3.2078,3218.9,3218.8,3.0700662]
[1737623489770,3.2078,3218.9,3218.8,43.8700662]
[1737623494667,0.0046615,3219.2,3219.1,0.62163]
[1737623494873,0.0046615,3219.2,3219.1,3.0700162]
[1737623497684,3.2078,3220.9,3219.1,7.4483862]
[1737623497875,3.2078,3220.9,3220.8,0.6213]
[1737623498285,0.4969,3221.2,3221.1,0.62124]
[1737623500989,3.7047,3221.2,3221.0,2.4483862]
[1737623501492,4.32593,3221.2,3221.0,2.4483862]
[1737623501684,4.32593,3221.2,3220.9,1.13468]
[1737623502193,3.7047,3221.2,3221.0,0.62126]
[1737623502892,3.7047,3221.2,3220.9,0.5134]
[1737623503094,4.32592,3221.2,3220.9,1.13467]
[1737623503395,3.7047,3221.2,3221.0,0.62125]
[1737623503987,3.7047,3221.2,3221.1,0.62124]
[1737623504988,3.2078,3221.2,3221.1,0.62124]
[1737623506693,3.82903,3221.2,3221.0,0.62125]
[1737623506894,3.2078,3221.2,3221.0,0.62125]
[1737623509392,3.82902,3221.2,3221.0,0.62125]
[1737623511292,3.2078,3221.2,3220.9,0.5134]
[1737623511491,0.62124,3221.1,3220.9,0.5134]
[1737623511793,3.82903,3221.2,3221.0,3.0696462]
[1737623512894,3.2078,3221.2,3221.0,2.4483862]
[1737623513083,1.11624,3221.1,3221.0,2.4483862]
[1737623514199,3.2078,3221.2,3221.1,0.62124]
[1737623515100,0.6258415,3221.5,3221.0,2.4483862]
[1737623515394,0.5016615,3221.5,3221.0,2.4483862]
[1737623515592,0.62124,3221.1,3221.0,2.4483862]
[1737623515791,0.62123,3221.2,3221.0,3.0696362]
[1737623515988,0.5016615,3221.5,3221.0,3.0696362]
[1737623516597,0.62124,3221.1,3221.0,2.4483862]
[1737623518200,0.62124,3221.1,3221.0,3.0696462]
[1737623518797,0.62123,3221.2,3221.0,3.0696462]
[1737623519101,0.5016615,3221.5,3221.0,3.0696462]
[1737623519402,0.62124,3221.1,3221.0,2.4483862]
[1737623520306,0.62124,3221.1,3221.0,3.0696462]
[1737623520604,3.2078,3221.2,3221.0,2.4483862]
[1737623520899,3.82902,3221.2,3221.1,0.62124]
[1737623521603,0.62124,3221.1,3221.0,3.0696362]
[1737623522103,0.62124,3221.1,3221.0,2.4483862]
[1737623523002,0.5016615,3221.5,3221.0,2.4483862]
[1737623523003,0.62119,3221.4,3221.0,2.4483862]
[1737623523304,0.62119,3221.4,3221.3,0.6212]
[1737623523497,0.62118,3221.4,3221.0,2.4483862]
[1737623523690,0.62118,3221.4,3221.2,0.62121]
[1737623523999,0.6212,3221.3,3221.2,0.62121]
[1737623524202,0.62123,3221.2,3221.1,0.62123]
[1737623524495,0.62121,3221.3,3221.1,0.62123]
[1737623525296,0.5016615,3221.5,3221.0,2.4483862]
[1737623525499,0.62128,3220.9,3220.8,0.6259515]
[1737623526597,0.62128,3220.9,3220.8,0.0046615]
[1737623527604,0.62134,3220.6,3220.5,3.2078]
[1737623528201,0.62134,3220.6,3220.5,3.82916]
[1737623528506,0.62134,3220.6,3220.5,44.5231]
[1737623528900,0.62134,3220.6,3220.5,40.8]
[1737623531010,0.62136,3220.5,3220.4,2.4483862]
[1737623531396,0.62136,3220.5,3220.4,43.2483862]
[1737623533398,0.62141,3220.2,3220.1,2.4483862]
[1737623534208,0.62141,3220.2,3220.1,3.0698162]
[1737623535201,0.62141,3220.3,3220.2,0.6214]
[1737623535600,0.62141,3220.3,3220.2,41.4214]